bitfinex/quotes_BTCUSD_20250812
["timestamp","ask_amount","ask_price","bid_price","bid_amount"]
[1754994552992,0.001,118580.0,118570.0,0.41215398]
[1754994553176,0.001,118580.0,118570.0,1.14969792]
[1754994560629,0.001,118580.0,118570.0,1.20969792]
[1754994562245,0.001,118580.0,118570.0,1.21795871]
[1754994568792,0.00612,118580.0,118570.0,1.21492871]
[1754994568995,0.00612,118580.0,118570.0,1.21280871]
[1754994570481,0.00612,118580.0,118570.0,1.21496871]
[1754994570684,0.00297,118580.0,118570.0,1.21496871]
[1754994570909,0.00293,118580.0,118570.0,0.84619674]
[1754994571085,0.00293,118580.0,118570.0,1.21496871]
[1754994572089,0.00096,118580.0,118570.0,1.21801871]
[1754994593725,0.003,118580.0,118570.0,1.21801871]
[1754994599069,0.00096,118580.0,118570.0,1.21801871]
[1754994601049,0.00096,118580.0,118570.0,1.60953698]
[1754994602138,0.00096,118580.0,118570.0,1.58679068]
[1754994603025,0.00013062,118580.0,118570.0,1.58679068]
[1754994603728,0.00013062,118580.0,118570.0,2.28679068]
[1754994604826,0.00013062,118580.0,118570.0,1.58679068]
[1754994606736,0.00013062,118580.0,118570.0,1.57852989]
[1754994607483,0.00013062,118580.0,118570.0,1.59597891]
[1754994607699,0.00013062,118580.0,118570.0,4.14812582]
[1754994608136,0.00013062,118580.0,118570.0,3.04180991]
[1754994609255,0.00013062,118580.0,118570.0,3.05019433]
[1754994610667,0.00013062,118580.0,118570.0,3.75019433]
[1754994611108,0.00049098,118590.0,118580.0,1.26737841]
[1754994611308,0.00049098,118590.0,118580.0,1.48449166]
[1754994611651,0.00049098,118590.0,118580.0,2.18449166]
[1754994611862,0.00049098,118590.0,118580.0,2.20980766]
[1754994613676,0.00049098,118590.0,118580.0,1.50980766]
[1754994613877,0.00049098,118590.0,118580.0,2.61612357]
[1754994614706,0.00049098,118590.0,118580.0,3.34565457]
[1754994615241,0.00049098,118590.0,118580.0,3.34665457]
[1754994615444,0.00049098,118590.0,118580.0,3.34765457]
[1754994615860,0.00049098,118590.0,118580.0,3.34565457]
[1754994616071,0.00049098,118590.0,118580.0,3.34765457]
[1754994616715,0.00049098,118590.0,118580.0,4.04765457]
[1754994616900,0.00049098,118590.0,118580.0,3.34765457]
[1754994618212,0.00049098,118590.0,118580.0,3.39010359]
[1754994619395,1e-08,118590.0,118580.0,3.39010359]
[1754994619633,0.0209245,118620.0,118610.0,0.16861984]
[1754994619843,0.0209245,118620.0,118610.0,1.11792703]
[1754994619844,0.0230445,118620.0,118610.0,1.11792703]
[1754994620294,0.0230445,118620.0,118610.0,1.12007703]
[1754994620562,0.0230445,118620.0,118610.0,1.514162]
[1754994620786,0.0201045,118620.0,118610.0,1.514162]
[1754994621262,0.0201045,118620.0,118610.0,1.14539003]
[1754994621448,0.0201045,118620.0,118610.0,1.17032633]
[1754994621693,0.0240445,118620.0,118610.0,1.16817633]
[1754994621913,0.0240445,118620.0,118610.0,1.16813633]
[1754994622768,0.0240445,118620.0,118610.0,1.22813633]
[1754994622987,0.0250445,118620.0,118610.0,1.22813633]
[1754994624936,0.0221045,118620.0,118610.0,1.23028633]
[1754994625584,0.0221045,118620.0,118610.0,1.23344633]
[1754994626220,0.0250445,118620.0,118610.0,1.23028633]
[1754994626450,0.0250445,118620.0,118610.0,1.93028633]
[1754994626663,0.0240445,118620.0,118610.0,1.93028633]
[1754994626915,0.0230445,118620.0,118610.0,1.93028633]
[1754994627143,0.0230445,118620.0,118610.0,1.92813633]
[1754994628112,0.0240445,118620.0,118610.0,1.92813633]
[1754994629707,0.0240445,118620.0,118610.0,1.86813633]
[1754994630353,0.0211045,118620.0,118610.0,1.87028633]
[1754994630602,0.0211045,118620.0,118610.0,1.87344633]
[1754994631076,0.0189845,118620.0,118610.0,1.87344633]
[1754994631278,0.0189845,118620.0,118610.0,1.17344633]
[1754994632605,0.0189845,118620.0,118610.0,1.04444633]
[1754994632817,0.0240445,118620.0,118610.0,0.79936436]
[1754994633032,0.0240445,118620.0,118610.0,1.16813633]
[1754994633747,0.0240445,118620.0,118610.0,0.43059239]
[1754994633970,0.0240445,118620.0,118610.0,1.16813633]
[1754994635666,0.0240445,118620.0,118610.0,0.43059239]
[1754994635884,0.0240445,118620.0,118610.0,1.16813633]
[1754994637420,0.0240445,118620.0,118610.0,1.17028633]
[1754994638094,0.0240445,118620.0,118610.0,0.43274239]
[1754994638336,0.0240445,118620.0,118610.0,1.17028633]
[1754994640488,0.0211045,118620.0,118610.0,1.17028633]
[1754994641141,0.0211045,118620.0,118610.0,1.17032633]
[1754994642842,0.0243145,118620.0,118610.0,1.04132633]
[1754994643055,0.0243145,118620.0,118610.0,0.85936436]
[1754994643280,0.0243145,118620.0,118610.0,1.22813633]
[1754994645772,0.0243145,118620.0,118610.0,1.23028633]
[1754994647506,0.0211045,118620.0,118610.0,1.23028633]
[1754994652959,0.0211045,118620.0,118610.0,1.23326633]
[1754994654105,0.0189845,118620.0,118610.0,1.23326633]
[1754994657750,0.0189845,118620.0,118610.0,0.49572239]
[1754994658000,0.0189845,118620.0,118610.0,1.23326633]
[1754994659730,0.0189845,118620.0,118610.0,1.6020383]
[1754994660428,0.00886441,118620.0,118610.0,2.6828093]
[1754994662190,0.00886441,118620.0,118610.0,2.6838093]
[1754994662886,0.00886441,118620.0,118610.0,2.06867349]
[1754994664670,0.00886441,118620.0,118610.0,2.76867349]
[1754994665109,0.00886441,118620.0,118610.0,2.27749339]
[1754994665337,0.00886441,118620.0,118610.0,2.59904549]
[1754994667446,0.00886441,118620.0,118610.0,2.51332449]
[1754994667710,0.00886441,118620.0,118610.0,2.28246849]
[1754994671582,0.00886441,118620.0,118610.0,1.58246849]
[1754994672410,0.00886441,118620.0,118610.0,1.32601349]
[1754994672619,0.01095441,118620.0,118610.0,1.12747949]
[1754994673036,0.00886441,118620.0,118610.0,1.12747949]
[1754994674330,0.00386441,118620.0,118610.0,1.14435949]
[1754994674529,0.00386441,118620.0,118610.0,1.82747949]
[1754994676098,0.00595441,118620.0,118610.0,1.79777249]
[1754994676916,0.00595441,118620.0,118610.0,1.80079249]
[1754994677135,0.00386441,118620.0,118610.0,1.80079249]
[1754994678246,0.00386441,118620.0,118610.0,1.10079249]
[1754994681978,0.00386441,118620.0,118610.0,1.80079249]
[1754994684783,0.00386441,118620.0,118610.0,2.41499044]
[1754994685549,0.00595441,118620.0,118610.0,1.80170109]
[1754994685767,0.00888441,118620.0,118610.0,1.22843109]
[1754994686004,0.00888441,118620.0,118610.0,0.49151239]
[1754994686198,0.00888441,118620.0,118610.0,0.85997174]
[1754994686446,0.00888441,118620.0,118610.0,1.22843109]
[1754994691738,0.00595441,118620.0,118610.0,1.23045109]
[1754994692203,0.00595441,118620.0,118610.0,1.23347109]
[1754994695370,0.00386441,118620.0,118610.0,1.60193044]
[1754994695835,0.0005494,118620.0,118610.0,2.02358344]
[1754994697384,0.0005494,118620.0,118610.0,2.72358344]
[1754994698695,0.0005494,118620.0,118610.0,2.10936795]
[1754994699573,0.0005494,118620.0,118610.0,2.15181697]
[1754994700083,0.0005494,118620.0,118610.0,2.30349414]
[1754994702205,0.0005494,118620.0,118610.0,1.60349414]
[1754994702416,0.0005494,118620.0,118610.0,1.45181697]
[1754994704497,0.0005494,118620.0,118610.0,1.46869697]
[1754994704703,0.0005494,118620.0,118610.0,1.45181697]
[1754994705868,8.046e-05,118620.0,118610.0,1.45181697]
[1754994706531,8.046e-05,118620.0,118610.0,1.26019797]
[1754994707351,8.046e-05,118620.0,118610.0,1.96019797]
[1754994710112,0.00654789,118660.0,118650.0,0.65972556]
[1754994710339,0.00867789,118660.0,118650.0,0.78856556]
[1754994710553,0.008727,118660.0,118650.0,0.78860556]
[1754994710778,0.00217911,118660.0,118650.0,0.78860556]
[1754994710990,0.1707279,118660.0,118650.0,0.78860556]
[1754994711433,0.1727279,118660.0,118650.0,0.78860556]
[1754994711861,0.00417911,118660.0,118650.0,0.78860556]
[1754994712078,0.00713911,118660.0,118650.0,0.78860556]
[1754994712504,0.01013911,118660.0,118650.0,0.78860556]
[1754994716561,0.01013911,118660.0,118650.0,0.65976556]
[1754994717438,0.01013911,118660.0,118650.0,0.87128881]
[1754994718750,0.01013911,118660.0,118650.0,0.74847761]
[1754994718951,0.00717911,118660.0,118650.0,0.74847761]
[1754994719958,0.00517911,118660.0,118650.0,1.11990897]
[1754994720186,0.00217911,118660.0,118650.0,1.12191897]
[1754994720384,0.00317911,118660.0,118650.0,1.12191897]
[1754994720598,0.00104911,118660.0,118650.0,1.12191897]
[1754994720802,0.00104911,118660.0,118650.0,1.14722397]
[1754994721589,0.00304911,118660.0,118650.0,1.14722397]
[1754994724977,0.00304911,118660.0,118650.0,1.51557533]
[1754994725199,0.00304911,118660.0,118650.0,1.14722397]
[1754994725847,0.00104911,118660.0,118650.0,1.14722397]
[1754994726070,4.911e-05,118660.0,118650.0,1.14722397]
[1754994726716,4.911e-05,118660.0,118650.0,1.51557533]
[1754994727158,4.911e-05,118660.0,118650.0,1.57557533]
[1754994728680,4.911e-05,118660.0,118650.0,0.47052125]
[1754994728918,4.911e-05,118660.0,118650.0,0.96144904]
[1754994730274,4.911e-05,118660.0,118650.0,1.66144904]
[1754994731128,4.911e-05,118660.0,118650.0,1.66244904]
[1754994731566,4.911e-05,118660.0,118650.0,1.66344904]
[1754994732236,4.911e-05,118660.0,118650.0,1.65835904]
[1754994732916,4.911e-05,118660.0,118650.0,0.95835904]
[1754994735538,4.911e-05,118660.0,118650.0,0.82955904]
[1754994735811,4.911e-05,118660.0,118650.0,0.95831904]
[1754994736001,4.911e-05,118660.0,118650.0,1.65831904]
[1754994743047,4.911e-05,118660.0,118650.0,0.95831904]
[1754994743814,4.911e-05,118660.0,118650.0,0.98331904]
[1754994744033,4.911e-05,118660.0,118650.0,1.72394704]
[1754994745802,4.911e-05,118660.0,118650.0,1.21671204]
[1754994746069,4.911e-05,118660.0,118650.0,1.91671204]
[1754994746288,4.911e-05,118660.0,118650.0,1.86613704]
[1754994748871,4.911e-05,118660.0,118650.0,2.47975303]
[1754994752665,4.911e-05,118660.0,118650.0,1.77975303]
[1754994752851,0.0004,118670.0,118660.0,2.37763635]
[1754994753005,0.0004,118670.0,118660.0,1.48453582]
[1754994753676,0.0004,118670.0,118660.0,1.48457582]
[1754994756105,0.0004,118670.0,118660.0,2.18794882]
[1754994758254,0.0004,118670.0,118660.0,5.2849086]
[1754994758433,5.622e-05,118670.0,118660.0,4.18036482]
[1754994758665,5.622e-05,118670.0,118660.0,3.90578582]
[1754994759511,5.622e-05,118670.0,118660.0,3.73717182]
[1754994759723,5.622e-05,118670.0,118660.0,3.32251582]
[1754994760276,5.622e-05,118670.0,118660.0,2.71438882]
[1754994760691,5.622e-05,118670.0,118660.0,2.63692982]
[1754994761885,5.622e-05,118670.0,118660.0,2.51630682]
[1754994762685,5.622e-05,118670.0,118660.0,1.90259695]
[1754994763165,5.622e-05,118670.0,118660.0,1.20259695]
[1754994765236,5.622e-05,118670.0,118660.0,1.07387695]
[1754994765469,5.622e-05,118670.0,118660.0,0.87423895]
[1754994766106,5.622e-05,118670.0,118660.0,1.57423895]
[1754994769631,5.622e-05,118670.0,118660.0,2.06507286]
[1754994769823,5.622e-05,118670.0,118660.0,1.57423895]
[1754994771166,1.622e-05,118670.0,118660.0,1.57423895]
[1754994774195,1.622e-05,118670.0,118660.0,0.87423895]
[1754994774414,0.00047,118690.0,118680.0,0.16852039]
[1754994774649,0.00047,118690.0,118680.0,0.87079755]
[1754994774849,0.00047,118690.0,118680.0,0.87083755]
[1754994775058,0.00047,118690.0,118680.0,0.89613455]
[1754994775825,0.00147,118690.0,118680.0,0.92097524]
[1754994776555,0.00347,118690.0,118680.0,0.92097524]
[1754994780578,0.00347,118690.0,118680.0,1.41180915]
[1754994782729,0.00347,118690.0,118680.0,1.53428716]
[1754994784253,0.00047,118690.0,118680.0,1.53428716]
[1754994784695,0.00147,118690.0,118680.0,1.53428716]
[1754994784909,0.00147,118690.0,118680.0,3.50960999]
[1754994785136,0.00021243,118690.0,118680.0,2.40546416]
[1754994785577,0.00021243,118690.0,118680.0,3.10546416]
[1754994785784,0.00121243,118690.0,118680.0,3.10546416]
[1754994785997,0.0004,118700.0,118690.0,0.16850619]
[1754994786203,0.00054729,118700.0,118690.0,1.11608666]
[1754994786700,0.00054729,118700.0,118690.0,0.87058904]
[1754994787184,0.00054729,118700.0,118690.0,0.87396104]
[1754994787605,0.00154729,118700.0,118690.0,0.87396104]
[1754994788655,0.00054729,118700.0,118690.0,0.87396104]
[1754994789124,0.00054729,118700.0,118690.0,0.93396104]
[1754994791296,0.00054729,118700.0,118690.0,0.93691104]
[1754994792910,0.00054729,118700.0,118690.0,1.63691104]
[1754994794832,0.00054729,118700.0,118690.0,1.63392104]
[1754994795422,0.00054729,118700.0,118690.0,1.63687104]
[1754994798652,0.00054729,118700.0,118690.0,1.63392104]
[1754994798870,0.00358729,118700.0,118690.0,0.44332144]
[1754994799123,0.00358729,118700.0,118690.0,0.93392104]
[1754994799408,0.17207928,118700.0,118690.0,0.93392104]
[1754994799623,0.00358729,118700.0,118690.0,0.93392104]
[1754994801363,0.00054729,118700.0,118690.0,0.93392104]
[1754994801999,0.00358729,118700.0,118690.0,0.93392104]
[1754994802212,0.17207928,118700.0,118690.0,0.93392104]
[1754994802427,0.00358729,118700.0,118690.0,0.93392104]
[1754994802868,0.00054729,118700.0,118690.0,0.93392104]
[1754994803968,0.00054729,118700.0,118690.0,0.93687104]
[1754994809240,0.00249729,118700.0,118690.0,0.93893104]
[1754994810312,0.00249729,118700.0,118690.0,0.44332144]
[1754994810532,0.00249729,118700.0,118690.0,0.93392104]
[1754994810755,0.00249729,118700.0,118690.0,0.80524104]
[1754994810966,0.00553729,118700.0,118690.0,0.93392104]
[1754994811470,0.00553729,118700.0,118690.0,0.44332144]
[1754994811724,0.00553729,118700.0,118690.0,0.93392104]
[1754994812433,0.00249729,118700.0,118690.0,0.93392104]
[1754994813880,0.00249729,118700.0,118690.0,0.44332144]
[1754994814094,0.00249729,118700.0,118690.0,0.93392104]
[1754994815382,0.00249729,118700.0,118690.0,0.93693104]
[1754994815798,0.00249729,118700.0,118690.0,0.93902104]
[1754994817453,0.00249729,118700.0,118690.0,0.44842144]
[1754994817666,0.00249729,118700.0,118690.0,0.93902104]
[1754994817879,0.00249729,118700.0,118690.0,0.93392104]
[1754994819184,0.00249729,118700.0,118690.0,0.93601104]
[1754994819406,0.00249729,118700.0,118690.0,0.93902104]
[1754994820452,0.00249729,118700.0,118690.0,0.81034104]
[1754994820671,0.00249729,118700.0,118690.0,0.93902104]
[1754994823777,0.00249729,118700.0,118690.0,0.44842144]
[1754994824008,0.00249729,118700.0,118690.0,0.93902104]
[1754994824449,0.17098928,118700.0,118690.0,0.44332144]
[1754994824642,0.17098928,118700.0,118690.0,0.43994944]
[1754994825069,0.17098928,118700.0,118690.0,0.93054904]
[1754994825999,0.17198928,118700.0,118690.0,0.93054904]
[1754994827389,0.17198928,118700.0,118690.0,0.27144325]
[1754994827604,0.17198928,118700.0,118690.0,0.14276325]
[1754994827823,0.17518928,118700.0,118690.0,0.27144325]
[1754994828675,0.17198928,118700.0,118690.0,0.27144325]
[1754994829229,0.17198928,118700.0,118690.0,0.43994944]
[1754994830130,0.17198928,118700.0,118690.0,0.93564904]
[1754994831252,0.17194928,118700.0,118690.0,0.76714285]
[1754994831469,0.17194928,118700.0,118690.0,0.27144325]
[1754994832205,0.17514928,118700.0,118690.0,0.06004]
[1754994832643,0.30382928,118700.0,118690.0,0.06004]
[1754994833482,0.79442888,118700.0,118690.0,0.06004]
[1754994833691,0.30382928,118700.0,118690.0,0.06004]
[1754994833943,0.79442888,118700.0,118690.0,0.06004]
[1754994834874,0.30382928,118700.0,118690.0,0.06004]
[1754994835087,0.79442888,118700.0,118690.0,0.06004]
[1754994835729,0.79442888,118700.0,118690.0,4e-05]
[1754994835959,0.30382928,118700.0,118690.0,4e-05]
[1754994836174,0.79442888,118700.0,118690.0,4e-05]
[1754994837032,0.16852039,118680.0,118670.0,0.73817913]
[1754994837254,0.16852039,118680.0,118670.0,0.82299238]
[1754994837725,0.29920039,118680.0,118670.0,0.09298918]
[1754994837970,0.29920039,118680.0,118670.0,0.02537878]
[1754994838397,0.16853459,118670.0,118660.0,0.79926582]
[1754994838614,0.16853459,118670.0,118660.0,0.88407907]
[1754994839696,0.16853459,118670.0,118660.0,0.88607907]
[1754994840595,0.16853459,118670.0,118660.0,0.75739907]
[1754994841038,0.16853459,118670.0,118660.0,0.75939907]
[1754994841254,0.16853459,118670.0,118660.0,0.81939907]
[1754994841476,0.16853459,118670.0,118660.0,0.81639907]
[1754994842326,0.16853459,118670.0,118660.0,0.8418078]
[1754994843700,0.29720039,118680.0,118660.0,0.8418078]
[1754994844362,0.29720039,118680.0,118670.0,0.00301]
[1754994844572,0.29921039,118680.0,118670.0,0.00301]
[1754994845002,0.16853459,118670.0,118660.0,0.8357178]
[1754994845248,0.16853459,118670.0,118660.0,0.8378078]
[1754994845943,0.16853459,118670.0,118660.0,0.8398078]
[1754994846150,0.16853459,118670.0,118660.0,0.8418078]
[1754994846358,0.16853459,118670.0,118660.0,0.8398078]
[1754994846788,0.29720039,118680.0,118660.0,0.8398078]
[1754994846996,0.29720039,118680.0,118660.0,0.8418078]
[1754994847565,0.29720039,118680.0,118660.0,0.8480916]
[1754994848194,0.29720039,118680.0,118660.0,0.8450816]
[1754994848402,0.29720039,118680.0,118670.0,0.00293]
[1754994848602,0.29921039,118680.0,118670.0,0.00493]
[1754994849654,0.29921039,118680.0,118670.0,0.00593]
[1754994850522,0.29921039,118680.0,118670.0,0.17546459]
[1754994854016,0.29921039,118680.0,118670.0,0.00693]
[1754994854455,0.29921039,118680.0,118670.0,0.17546459]
[1754994854855,0.29921039,118680.0,118670.0,0.54376128]
[1754994855097,0.29921039,118680.0,118670.0,0.37522669]
[1754994855541,0.29921039,118680.0,118670.0,0.00693]
[1754994855983,0.29921039,118680.0,118670.0,0.37522669]
[1754994856902,0.29921039,118680.0,118670.0,0.54376128]
[1754994858090,0.29921039,118680.0,118670.0,0.17546459]
[1754994858300,0.29921039,118680.0,118670.0,0.54376128]
[1754994873438,0.29720039,118680.0,118670.0,0.54376128]
[1754994874189,0.29720039,118680.0,118670.0,0.17546459]
[1754994874388,0.29720039,118680.0,118670.0,0.54376128]
[1754994874600,0.29720039,118680.0,118670.0,0.17546459]
[1754994874824,0.29720039,118680.0,118670.0,0.54376128]
[1754994877321,0.29720039,118680.0,118670.0,0.17546459]
[1754994877538,0.29720039,118680.0,118670.0,0.54376128]
[1754994877749,0.29720039,118680.0,118670.0,0.17546459]
[1754994877944,0.29720039,118680.0,118670.0,0.54376128]
[1754994882210,0.29931039,118680.0,118670.0,0.00693]
[1754994882620,0.29931039,118680.0,118670.0,0.37229669]
[1754994882816,0.29931039,118680.0,118670.0,0.004]
[1754994883170,0.29931039,118680.0,118670.0,0.37229669]
[1754994883805,0.66760708,118680.0,118670.0,0.002]
[1754994884030,0.38086312,118680.0,118670.0,0.002]
[1754994884664,0.38086312,118680.0,118670.0,0.001]
[1754994884877,0.16853459,118670.0,118660.0,0.4428515]
[1754994885096,0.16853459,118670.0,118660.0,0.81323819]
[1754994885337,0.16853459,118670.0,118660.0,0.68459819]
[1754994885579,0.17064459,118670.0,118660.0,0.06503]
[1754994885768,0.17064459,118670.0,118660.0,0.42829669]
[1754994885991,0.16854879,118660.0,118650.0,0.57353284]
[1754994886202,0.16854879,118660.0,118650.0,0.57562284]
[1754994886203,0.29714879,118660.0,118650.0,0.57562284]
[1754994886628,0.1286,118660.0,118650.0,0.55031784]
[1754994887078,0.29713459,118670.0,118660.0,0.16854879]
[1754994887296,0.29713459,118670.0,118660.0,0.37038669]
[1754994887514,0.29713459,118670.0,118660.0,0.54187548]
[1754994888459,0.29713459,118670.0,118660.0,0.54287548]
[1754994890342,0.29713459,118670.0,118660.0,0.54387548]
[1754994890886,0.29713459,118670.0,118660.0,0.91217217]
[1754994892243,0.29713459,118670.0,118660.0,0.17557879]
[1754994892455,0.29713459,118670.0,118660.0,0.54387548]
[1754994896256,0.29713459,118670.0,118660.0,0.17557879]
[1754994896431,0.34918339,118670.0,118660.0,0.37238669]
[1754994897454,0.34918339,118670.0,118660.0,0.54093548]
[1754994897631,0.34918339,118670.0,118660.0,0.54387548]
[1754994897839,0.29924459,118670.0,118660.0,0.54387548]
[1754994898044,0.2022534,118680.0,118670.0,0.16853459]
[1754994898243,4.908e-05,118680.0,118670.0,0.54186128]
[1754994898442,0.12864908,118680.0,118670.0,0.91015797]
[1754994898931,0.12864908,118680.0,118670.0,0.54186128]
[1754994899449,0.29716947,118680.0,118670.0,0.54186128]
[1754994899896,0.29716947,118680.0,118670.0,0.17356459]
[1754994900107,0.29927947,118680.0,118670.0,0.54186128]
[1754994900323,0.3817639,118680.0,118670.0,0.36829669]
[1754994901209,0.3847339,118680.0,118670.0,4e-05]
[1754994901415,0.3847339,118680.0,118670.0,0.36833669]
[1754994901622,0.3817639,118680.0,118670.0,0.36833669]
[1754994902860,0.3817639,118680.0,118670.0,4e-05]
[1754994903273,0.3847339,118680.0,118670.0,4e-05]
[1754994904154,0.16853459,118670.0,118660.0,0.49402435]
[1754994904376,0.168563,118650.0,118640.0,0.00834204]
[1754994904592,0.168563,118650.0,118630.0,0.40144142]
[1754994904593,0.299273,118650.0,118630.0,0.40144142]
[1754994904818,0.1685772,118640.0,118630.0,0.35556467]
[1754994905044,0.1685772,118640.0,118630.0,0.49483725]
[1754994905248,0.1685772,118640.0,118630.0,0.46952825]
[1754994905462,0.1685772,118640.0,118630.0,0.9606126]
[1754994905888,0.297163,118650.0,118630.0,0.9606126]
[1754994906100,0.297163,118650.0,118630.0,0.95211913]
[1754994906659,0.1685772,118640.0,118630.0,0.95211913]
[1754994906874,0.297163,118650.0,118630.0,0.96075311]
[1754994907088,0.297163,118650.0,118630.0,0.95211913]
[1754994907966,0.1685772,118640.0,118630.0,0.96058073]
[1754994908612,0.1685772,118640.0,118630.0,0.95211913]
[1754994909315,0.1685772,118640.0,118630.0,0.38255377]
[1754994909531,0.1685772,118640.0,118630.0,0.87363812]
[1754994909748,0.1685772,118640.0,118630.0,0.74503812]
[1754994909939,0.1685772,118640.0,118630.0,0.57644671]
[1754994912960,0.1705872,118640.0,118630.0,8.911e-05]
[1754994913165,0.1737472,118640.0,118630.0,8.911e-05]
[1754994914718,0.1990612,118640.0,118630.0,8.911e-05]
[1754994915339,0.2000612,118640.0,118630.0,8.911e-05]
[1754994915549,0.28454563,118640.0,118630.0,8.911e-05]
[1754994915753,0.30199465,118640.0,118630.0,8.911e-05]
[1754994920393,0.793079,118640.0,118630.0,8.911e-05]
[1754994920836,0.3847179,118640.0,118630.0,8.911e-05]
[1754994921049,0.87580225,118640.0,118630.0,8.911e-05]
[1754994921517,0.90080225,118640.0,118630.0,8.911e-05]
[1754994921728,0.89980225,118640.0,118630.0,8.911e-05]
[1754994921904,0.90080225,118640.0,118630.0,8.911e-05]
[1754994922139,0.90480225,118640.0,118630.0,8.911e-05]
[1754994922564,0.4137179,118640.0,118630.0,8.911e-05]
[1754994922792,0.90480225,118640.0,118630.0,8.911e-05]
[1754994923882,0.4137179,118640.0,118630.0,8.911e-05]
[1754994924118,0.90480225,118640.0,118630.0,8.911e-05]
[1754994924945,0.4137179,118640.0,118630.0,8.911e-05]
[1754994925153,0.90480225,118640.0,118630.0,8.911e-05]
[1754994926320,0.91265908,118640.0,118630.0,8.911e-05]
[1754994926778,0.91265907,118640.0,118630.0,8.911e-05]
[1754994929391,1.00143907,118640.0,118630.0,8.911e-05]
[1754994929567,0.91265907,118640.0,118630.0,8.911e-05]
[1754994929986,1.40374342,118640.0,118630.0,8.911e-05]
[1754994930214,0.91265907,118640.0,118630.0,8.911e-05]
[1754994930427,0.91265988,118640.0,118630.0,8.911e-05]
[1754994930907,0.90565988,118640.0,118630.0,8.911e-05]
[1754994931110,0.90965988,118640.0,118630.0,8.911e-05]
[1754994931324,0.91565988,118640.0,118630.0,8.911e-05]
[1754994931552,1.05502988,118640.0,118630.0,8.911e-05]
[1754994933663,1.17577225,118640.0,118630.0,8.911e-05]
[1754994933874,1.18363727,118640.0,118630.0,8.911e-05]
[1754994934275,1.20176766,118640.0,118630.0,8.911e-05]
[1754994938493,1.15117766,118640.0,118630.0,8.911e-05]
[1754994941101,1.06239766,118640.0,118630.0,8.911e-05]
[1754994941970,1.07815464,118640.0,118630.0,8.911e-05]
[1754994942216,1.10088734,118640.0,118630.0,8.911e-05]
[1754994942433,1.10089215,118640.0,118630.0,8.911e-05]
[1754994942647,1.09302713,118640.0,118630.0,8.911e-05]
[1754994942837,1.10090802,118640.0,118630.0,8.911e-05]
[1754994943231,1.10090947,118640.0,118630.0,8.911e-05]
[1754994945013,1.59199382,118640.0,118630.0,8.911e-05]
[1754994945215,1.59199382,118640.0,118610.0,0.0707004]
[1754994945216,0.16860563,118620.0,118610.0,0.00309]
[1754994945506,0.16863406,118600.0,118590.0,0.0676104]
[1754994945702,0.29723406,118600.0,118590.0,0.0696804]
[1754994945909,0.29723406,118600.0,118590.0,0.0727704]
[1754994946142,0.29723406,118600.0,118590.0,0.56385475]
[1754994946797,0.29723406,118600.0,118590.0,0.56390384]
[1754994946927,0.16863406,118600.0,118590.0,0.56390384]
[1754994947144,0.29723406,118600.0,118590.0,0.56490384]
[1754994947357,0.29723406,118600.0,118590.0,0.56590384]
[1754994947959,0.29723406,118600.0,118590.0,0.07481949]
[1754994948182,0.29723406,118600.0,118590.0,0.56590384]
[1754994948716,0.34556563,118600.0,118590.0,0.49829344]
[1754994949401,0.3534525,118600.0,118590.0,0.49829344]
[1754994949586,0.30512093,118600.0,118590.0,0.49829344]
[1754994951118,0.30512093,118600.0,118590.0,0.00720909]
[1754994951328,0.30512093,118600.0,118590.0,0.49829344]
[1754994951758,0.30512301,118600.0,118590.0,0.49829344]
[1754994953379,0.30512273,118600.0,118590.0,0.00720909]
[1754994953584,0.30512273,118600.0,118590.0,0.49829344]
[1754994953820,0.3450321,118600.0,118590.0,0.66694172]
[1754994954046,0.29723406,118600.0,118590.0,0.49829344]
[1754994955016,0.29723406,118600.0,118590.0,0.66694172]
[1754994955226,0.29723406,118600.0,118590.0,0.49829344]
[1754994955828,0.29723406,118600.0,118590.0,0.00720909]
[1754994956035,0.29723406,118600.0,118590.0,0.66694172]
[1754994956639,0.29723406,118600.0,118590.0,0.00720909]
[1754994957018,0.32688458,118600.0,118590.0,0.37598406]
[1754994957659,0.32688458,118600.0,118590.0,0.00720909]
[1754994957865,0.32688458,118600.0,118590.0,0.37598406]
[1754994958489,0.32896458,118600.0,118590.0,0.37598406]
[1754994959343,0.32896458,118600.0,118590.0,0.00720909]
[1754994962206,0.32688458,118600.0,118590.0,0.00720909]
[1754994962396,0.29719406,118600.0,118590.0,0.49897423]
[1754994962764,0.29719406,118600.0,118590.0,0.00720909]
[1754994962975,0.29719406,118600.0,118590.0,0.49897423]
[1754994963894,0.16863406,118600.0,118590.0,0.49897423]
[1754994964088,0.29719406,118600.0,118590.0,0.49897423]
[1754994964453,0.17060857,118620.0,118600.0,0.16863406]
[1754994964660,0.12856,118610.0,118600.0,0.16863406]
[1754994964879,0.12856,118610.0,118600.0,0.17070406]
[1754994965338,0.12856,118610.0,118600.0,0.17379406]
[1754994965773,0.12856,118610.0,118600.0,0.6655592]
[1754994966606,0.12956,118610.0,118600.0,0.6655592]
[1754994967751,0.12956,118610.0,118600.0,0.17379406]
[1754994967936,0.12956,118610.0,118600.0,0.6655592]
[1754994968407,0.12956,118610.0,118600.0,0.17379406]
[1754994968839,0.12956,118610.0,118600.0,0.6655592]
[1754994969285,0.001,118610.0,118600.0,0.6655592]
[1754994969499,0.12956,118610.0,118600.0,0.6655592]
[1754994969946,0.13155,118610.0,118600.0,0.16863406]
[1754994970162,0.30016984,118610.0,118600.0,0.17370406]
[1754994970388,0.30016984,118610.0,118600.0,0.00507]
[1754994971037,0.16863406,118600.0,118590.0,0.66046112]
[1754994971253,0.16863406,118600.0,118590.0,0.66553112]
[1754994972561,0.16863406,118600.0,118590.0,0.66653112]
[1754994972992,0.16863406,118600.0,118590.0,0.66753112]
[1754994973429,0.30039984,118610.0,118590.0,0.66753112]
[1754994973649,0.29717984,118610.0,118590.0,0.66753112]
[1754994974072,0.16863406,118600.0,118590.0,0.66753112]
[1754994974521,0.16863406,118600.0,118590.0,0.66653112]
[1754994974951,0.16863406,118600.0,118590.0,0.66553112]
[1754994975623,0.16863406,118600.0,118590.0,0.66653112]
[1754994976477,0.16863406,118600.0,118590.0,0.66753112]
[1754994981634,0.16863406,118600.0,118590.0,0.49888423]
[1754994982694,0.16863406,118600.0,118590.0,0.00711909]
[1754994982910,0.17062406,118600.0,118590.0,0.49579423]
[1754994983354,0.17062406,118600.0,118590.0,0.00402909]
[1754994983564,0.17062406,118600.0,118590.0,0.00711909]
[1754994984003,0.17062406,118600.0,118590.0,0.49888423]
[1754994986447,0.16863406,118600.0,118590.0,0.49888423]
[1754994992027,0.16863406,118600.0,118590.0,0.00711909]
[1754994992237,0.16863406,118600.0,118590.0,0.49888423]
[1754994995469,0.16863406,118600.0,118590.0,0.66753251]
[1754994996040,0.16863406,118600.0,118590.0,0.49888423]
[1754994996247,0.16863406,118600.0,118590.0,0.66753251]
[1754994996685,0.16863406,118600.0,118590.0,0.49888423]
[1754994999012,0.16863406,118600.0,118590.0,0.66753251]
[1754995000092,0.16863406,118600.0,118590.0,0.49888423]
[1754995002434,0.16863406,118600.0,118590.0,0.00711909]
[1754995002665,0.16863406,118600.0,118590.0,0.49888423]
[1754995004193,0.17063406,118600.0,118590.0,0.49579423]